Cogmind - Beta 12 X4 @@@ ROGUE MODE // 2022.12.02 @ 21:58:43 Player: Lunatic Blue Result: Core destroyed Performance ------------- Evolutions (3) 1500 Regions Visited (5) 1000 Robots Destroyed (22) 110 Value Destroyed (529) 529 Prototype IDs (2) 40 Alien Tech Used (0) 0 Bonus (500) 500 TOTAL SCORE: 3679 Bonus ------- Entered DSFs 500 Cogmind --------- Core Integrity 0/700 Matter 188/300 Energy 100/100 System Corruption 0% Temperature Cool (30) Movement Core (50) Location -7/DSF Parts ------- > --- POWER (1) -------- (None) > --- PROPULSION (4) --- (None) > --- UTILITY (5) ------ Hacking Suite System Shield System Shield > --- WEAPON (3) ------- (None) > --- INVENTORY (5) ---- Heavy Ion Engine Medium Storage Unit Hacking Suite Long-range Tractor Beam Peak State ------------ > --- POWER ------------ Deuterium Engine > --- PROPULSION ------- Flight Unit Flight Unit Flight Unit Flight Unit > --- UTILITY ---------- Hacking Suite Hacking Suite System Shield System Shield System Shield > --- WEAPON ----------- Rocket Launcher Flail Powered Hammer > --- INVENTORY -------- Heavy Ion Engine Medium Storage Unit Hacking Suite Long-range Tractor Beam [Rating: 31] Favorites ----------- Power Heavy Ion Engine Engine Heavy Ion Engine Propulsion Aluminum Leg Leg Aluminum Leg Flight Unit Flight Unit Utility Medium Storage Unit Device Heat Sink Storage Medium Storage Unit Processor Targeting Computer Hackware Hacking Suite Weapon Light Assault Rifle Energy Gun Small Laser Ballistic Gun Light Assault Rifle Launcher Rocket Launcher Impact Weapon Flail Build | -11 -10 -9 -8 -7 -7 ------- Run | Scr Mat Mat Mat Fac DSF Slots Evolved 6 | . . 2 2 2 . Power . | . . . . . . Propulsion 2 | . . 1 . 1 . Utility 3 | . . . 2 1 . Weapon 1 | . . 1 . . . Parts Attached 39 | 6 3 13 13 3 1 Power 3 | 1 . 1 1 . . Engine 3 | 1 . 1 1 . . Core . | . . . . . . Reactor . | . . . . . . Propulsion 12 | 2 . 3 6 1 . Treads . | . . . . . . Leg 5 | 2 . 3 . . . Wheel . | . . . . . . Hover . | . . . . . . Flight 7 | . . . 6 1 . Utility 13 | 1 3 3 4 2 . Device 1 | . . . 1 . . Storage 6 | 1 2 2 . 1 . Processor 1 | . 1 . . . . Hackware 5 | . . 1 3 1 . Protection . | . . . . . . Artifact . | . . . . . . Weapon 11 | 2 . 6 2 . 1 Energy Gun 3 | 1 . 2 . . . Energy Cannon . | . . . . . . Ballistic Gun 4 | 1 . 3 . . . Ballistic Cannon . | . . . . . . Launcher 2 | . . . 2 . . Special Weapon . | . . . . . . Impact Weapon 2 | . . 1 . . 1 Slashing Weapon . | . . . . . . Piercing Weapon . | . . . . . . Special Melee Weapon . | . . . . . . Unidentified Prototypes 2 | . . 2 . . . Parts Lost 11 | . . 1 . . 10 Power 1 | . . . . . 1 Propulsion 5 | . . 1 . . 4 Utility 2 | . . . . . 2 Weapon 3 | . . . . . 3 Highest Loss Streak 10 | . . 1 . . 10 To Critical Strikes . | . . . . . . Average Slot Usage (%) 91 | . 94 92 83 92 61 Engine 11 | . 14 11 9 7 5 Leg 25 | . 28 31 . . . Flight 3 | . . . 27 30 7 Storage 10 | . 14 11 . 1 . Processor 5 | . 8 4 . . . Hackware 8 | . . 6 33 36 36 Energy Gun 8 | . 14 8 . . . Ballistic Gun 13 | . 14 17 1 . . Impact Weapon 2 | . . 2 9 7 9 Naked Turns . | . . . . . . Heaviest Build 37 | 12 37 26 15 15 15 Greatest Support 30 | 20 20 30 12 16 16 Greatest Overweight (x) 4 | 2 1 1 1 . 4 Average Overweight (x) . | . . . . . 1 Largest Inventory Capacity 20 | 8 15 20 10 10 5 Average Capacity 9 | 6 10 10 5 5 5 Most Carried 10 | 3 10 10 10 4 4 Average Carried 8 | 2 7 9 4 3 4 Final Capacity 10 | 8 10 10 5 5 5 Final Carried 10 | 3 10 10 5 4 4 Class Distribution -------------------- 54% | Mutant 19% | Scavenger-Gunner 11% | Scavenger-Mutant 10% | Hacker-Mutant 4% | Hacker-Sprinter Dominant Class ---------------- Mutant | -10/Materials Mutant | -9/Materials Hacker-Mutant | -8/Materials Hacker-Sprinter | -7/Factory Hacker-Mutant | -7/DSF Resources | -11 -10 -9 -8 -7 -7 ----------- Run | Scr Mat Mat Mat Fac DSF Matter Collected 541 | 173 103 235 30 . . Remotely . | . . . . . . Salvage Created 638 | . 163 434 41 . . Parts 48 | . 13 27 8 . . Haulers Intercepted 1 | . . 1 . . . Recyclers Shooed 1 | . . 1 . . . Parts Field Recycled . | . . . . . . Retrieved Matter . | . . . . . . Parts Self-Destructed . | . . . . . . Prevented . | . . . . . . Kills | -11 -10 -9 -8 -7 -7 ------- Run | Scr Mat Mat Mat Fac DSF Combat Hostiles Destroyed 18 | . 4 10 4 . . Guns 14 | . 4 10 . . . AOE 4 | . . . 4 . . Classes Destroyed 6 | . 2 3 1 . . Builder 1 | . . . 1 . . Hauler 1 | . . 1 . . . Operator 2 | . 2 . . . . Swarmer 7 | . . 3 4 . . Grunt 8 | . 4 4 . . . Sentry 3 | . . 3 . . . Best Kill Streak 5 | . 2 4 5 . . Combat Bots Only 4 | . 2 4 4 . . Max Kills in Single Turn 3 | . 1 1 3 . . Gunslinging . | . . . . . . Exploded 3 | . . . 3 . . Melee . | . . . . . . Uniques/NPCs Destroyed . | . . . . . . Combat | -11 -10 -9 -8 -7 -7 -------- Run | Scr Mat Mat Mat Fac DSF Damage Taken 1864 | . 118 494 115 . 1137 Core 865 | . 22 103 39 . 701 Absorbed by Shields . | . . . . . . Core Remaining (%) 89 | 100 91 74 92 . . Volleys Fired 57 | . 21 34 2 . . Largest 3 | . 2 3 1 . . Hottest 107 | . 60 107 33 . . Shots Fired 117 | . 42 73 2 . . Gun 115 | . 42 73 . . . Cannon . | . . . . . . Launcher 2 | . . . 2 . . Special . | . . . . . . Kinetic 66 | . 21 45 . . . Thermal 49 | . 21 28 . . . Explosive 2 | . . . 2 . . Electromagnetic . | . . . . . . Robot Hit Streak 13 | . 7 13 3 . . Robot Miss Streak 5 | . 3 5 . . . Penetration Max . | . . . . . . Secondary Targets . | . . . . . . Shots Hit Robots 72 | . 25 44 3 . . Core Hits 37 | . 13 21 3 . . Critical Kills . | . . . . . . Critical Parts Destroyed 1 | . . . 1 . . Critical Strikes 1 | . . . 1 . . Smash 1 | . . . 1 . . Melee Attacks 4 | . . . 4 . . Impact 4 | . . . 4 . . Slashing . | . . . . . . Piercing . | . . . . . . Sneak Attacks 1 | . . . 1 . . Combat Hostiles . | . . . . . . Follow-up Attacks . | . . . . . . Damage Inflicted 997 | . 213 558 226 . . Guns 771 | . 213 558 . . . Cannons . | . . . . . . Explosions 160 | . . . 160 . . Melee 66 | . . . 66 . . Ramming . | . . . . . . Kinetic 432 | . 128 304 . . . Thermal 339 | . 85 254 . . . Explosive 160 | . . . 160 . . Electromagnetic . | . . . . . . Impact 66 | . . . 66 . . Slashing . | . . . . . . Piercing . | . . . . . . Highest Corruption . | . . . . . . Average Corruption . | . . . . . . Corruption Purged . | . . . . . . Corruption Blocked . | . . . . . . Overload Shots . | . . . . . . Overflow Damage 94 | . . . 94 . . Projectiles . | . . . . . . Explosions 28 | . . . 28 . . Melee 66 | . . . 66 . . Knockbacks 1 | . . . 1 . . Impact 1 | . . . 1 . . Kinetic . | . . . . . . Secondary . | . . . . . . Self-Inflicted Damage 33 | . . . 33 . . Shots 1 | . . . 1 . . Rammed . | . . . . . . Targets Rammed . | . . . . . . Kicked . | . . . . . . Crushed . | . . . . . . Highest Temperature 112 | . 64 112 8 . . Average Temperature 23 | . 22 24 8 . . Received Heat Transfer 252 | . 66 141 45 . . Siege Activations . | . . . . . . Robots Corrupted . | . . . . . . Combat Hostiles . | . . . . . . Parts Fried 2 | . . . 2 . . Impact Corruptions 3 | . . . 3 . . Robots Melted . | . . . . . . Combat Hostiles . | . . . . . . Parts Melted 2 | . . 2 . . . Heat Transferred 735 | . 200 535 . . . Parts Sabotaged . | . . . . . . Parts Stolen . | . . . . . . Parts Stripped . | . . . . . . Power Chain Reactions . | . . . . . . Missiles Intercepted . | . . . . . . Alert | -11 -10 -9 -8 -7 -7 ------- Run | Scr Mat Mat Mat Fac DSF Peak Influence 301 | . 150 289 301 136 95 Initial 136 | . . 63 120 136 95 Average 132 | . 72 164 225 136 46 Maximum Alert Level 1 | . . 1 1 . . Low Security (%) 74 | 100 100 63 29 100 100 Level 1 25 | . . 36 70 . . Level 2 . | . . . . . . Level 3 . | . . . . . . Level 4 . | . . . . . . Level 5 . | . . . . . . High Security . | . . . . . . Max Security . | . . . . . . Squads Dispatched 4 | . 3 . 1 . . Investigation 2 | . 1 . 1 . . Extermination . | . . . . . . Reinforcement 2 | . 2 . . . . Assault . | . . . . . . Garrison . | . . . . . . Intercept . | . . . . . . Searches Triggered . | . . . . . . Construction Impeded . | . . . . . . Haulers Reinforced . | . . . . . . Active Scanning Responses . | . . . . . . Cargo Convoy Interrupts . | . . . . . . Stealth | -11 -10 -9 -8 -7 -7 --------- Run | Scr Mat Mat Mat Fac DSF Distress Signals 2 | . 1 1 . . . Communications Jammed . | . . . . . . Distress Signals . | . . . . . . Times Spotted 39 | . 11 19 8 . 1 Peak Tracking Total 6 | . 2 6 4 . 1 Tactical Retreats 5 | . . 4 1 . . Traps | -11 -10 -9 -8 -7 -7 ------- Run | Scr Mat Mat Mat Fac DSF Traps Triggered 2 | . 1 . 1 . . Indirectly . | . . . . . . Trap Hack Attempts . | . . . . . . Triggered . | . . . . . . Disarmed . | . . . . . . Reprogrammed . | . . . . . . Reused . | . . . . . . Traps Extracted . | . . . . . . Installed . | . . . . . . Triggered . | . . . . . . Machines | -11 -10 -9 -8 -7 -7 ---------- Run | Scr Mat Mat Mat Fac DSF Machines Disabled . | . . . . . . Max in Single Turn . | . . . . . . Garrison Access 1 | . . . . 1 . Machines Sabotaged . | . . . . . . Overloaded Fab Kills . | . . . . . . Hacking | -11 -10 -9 -8 -7 -7 --------- Run | Scr Mat Mat Mat Fac DSF Machines Accessed 6 | . . 3 1 2 . Terminals 5 | . . 3 1 1 . Fabricators . | . . . . . . Repair Stations . | . . . . . . Recycling Units . | . . . . . . Scanalyzers . | . . . . . . Garrison Access 1 | . . . . 1 . Total Hacks 22 | . . 13 5 4 . Successful 15 | . . 10 3 2 . Failed 6 | . . 2 2 2 . Catastrophic 1 | . . 1 . . . Database Lockouts 1 | . . 1 . . . Manual 18 | . . 13 5 . . Terminals 19 | . . 13 5 1 . Fabricators . | . . . . . . Repair Stations . | . . . . . . Recycling Units . | . . . . . . Scanalyzers . | . . . . . . Garrison Access 3 | . . . . 3 . Terminal Hacks 6 | . . 4 1 1 . Record 1 | . . 1 . . . Robot Analysis 1 | . . 1 . . . Open DSF 1 | . . . . 1 . Zone Layout 3 | . . 2 1 . . Fabricator Hacks . | . . . . . . Repair Station Hacks . | . . . . . . Recycling Unit Hacks . | . . . . . . Scanalyzer . | . . . . . . Garrison Access Hacks 1 | . . . . 1 . Seal Access 1 | . . . . 1 . Unauthorized Hacks 8 | . . 6 2 . . Terminals 8 | . . 6 2 . . Assimilate 1 | . . 1 . . . Botnet 4 | . . 3 1 . . Operators 3 | . . 2 1 . . Fabricators . | . . . . . . Repair Stations . | . . . . . . Recycling Units . | . . . . . . Scanalyzers . | . . . . . . Garrison Access . | . . . . . . Data Cores Recovered . | . . . . . . Used . | . . . . . . Hacking Detections 4 | . . 3 1 . . Full Trace Events . | . . . . . . Feedback Events . | . . . . . . Feedback Blocked . | . . . . . . Robot Schematics Acquired . | . . . . . . Robots Built . | . . . . . . Authchips . | . . . . . . Time . | . . . . . . Total Robot Build Rating . | . . . . . . Part Schematics Acquired . | . . . . . . Parts Built . | . . . . . . Authchips . | . . . . . . Time . | . . . . . . Total Part Build Rating . | . . . . . . Parts Repaired . | . . . . . . Time . | . . . . . . Parts Recycled . | . . . . . . Recycled Matter . | . . . . . . Retrieved Matter . | . . . . . . Retrieved Components . | . . . . . . Parts Scanalyzed . | . . . . . . Part Schematics Acquired . | . . . . . . Parts Damaged . | . . . . . . Bothacking | -11 -10 -9 -8 -7 -7 ------------ Run | Scr Mat Mat Mat Fac DSF Used RIF Installer . | . . . . . . Robots Hacked . | . . . . . . Non-combat . | . . . . . . Combat . | . . . . . . Robot Hacks Applied . | . . . . . . Relay Couplers Released . | . . . . . . Fabnet Peak Effective % . | . . . . . . Robots Rewired 1 | . . . . 1 . Allies Hacked . | . . . . . . Hacks Repelled . | . . . . . . Allies | -11 -10 -9 -8 -7 -7 -------- Run | Scr Mat Mat Mat Fac DSF Total Allies 2 | . . 1 . 1 . Largest Group 1 | . . 1 . 1 . Highest-Rated Group 32 | . . 10 . 32 . Highest-Rated Ally 32 | . . 10 . 32 . Total Orders . | . . . . . . Ally Attacks . | . . . . . . Total Damage . | . . . . . . Kills . | . . . . . . Allies Corrupted . | . . . . . . Allies Melted . | . . . . . . Intel | -11 -10 -9 -8 -7 -7 ------- Run | Scr Mat Mat Mat Fac DSF Robot Analysis Total 1 | . . 1 . . . Derelict Logs Recovered . | . . . . . . Drone Launches . | . . . . . . Drone Recoveries . | . . . . . . Exploration | -11 -10 -9 -8 -7 -7 ------------- Run | Scr Mat Mat Mat Fac DSF Turns Passed 1361 | 58 391 705 123 47 37 Spaces Moved 992 | 45 256 306 220 127 38 Core 34 | 14 . . . . 20 Treads . | . . . . . . Legs 593 | 31 256 306 . . . Wheels . | . . . . . . Hover . | . . . . . . Flight 365 | . . . 220 127 18 Fastest Speed 31 | 50 120 120 34 31 31 Average Speed 92 | 104 120 133 38 31 91 Slowest Speed 250 | 150 190 190 114 31 250 Overloaded Moves . | . . . . . . Propulsion Burnouts . | . . . . . . Robots Hopped 5 | . . . 5 . . Cave-ins Triggered . | . . . . . . Exploration Rate (%) 28 | 4 37 39 20 7 62 Regions Visited 5 Branch Regions . Pre-discovered Areas . | . . . . . . Known Exits Taken 1 | . . . . 1 . Unknown Exits Taken 4 | 1 1 1 1 . . Scrap Searched . | . . . . . . Spaces Dug 2 | . . . 2 . . Terrain Destroyed 31 | . . . 31 . . Melee 2 | . . . 2 . . Projectile . | . . . . . . AOE 29 | . . . 29 . . Terrain Rammed . | . . . . . . Walls Destroyed . | . . . . . . Machines Disabled . | . . . . . . Actions | -11 -10 -9 -8 -7 -7 --------- Run | Scr Mat Mat Mat Fac DSF Total 1332 | 53 305 550 251 134 39 Wait 176 | . 8 168 . . . Move 977 | 44 255 305 209 126 38 Hop 5 | . . . 5 . . Pick Up 31 | 3 11 11 5 1 . Fast Attach 16 | 6 2 6 1 . 1 Attach 13 | . . 1 9 3 . Detach 4 | . 1 . 2 1 . Swap 10 | . 1 6 3 . . Drop 36 | . 6 19 11 . . Fire 57 | . 21 34 2 . . Melee 4 | . . . 4 . . Ram . | . . . . . . Kick . | . . . . . . Crush . | . . . . . . Escape Stasis . | . . . . . . Rewire 3 | . . . . 3 . Trap . | . . . . . . Miscellaneous . | . . . . . . Route ------- -11/Scrapyard -10/Materials -9/Materials -8/Materials -7/Factory -7/DSF History --------- Turn | Location | Event 31 | -11/Scrapyard | Discovered new exit (range 16) 59 | -11/Scrapyard | Entered Materials 267 | -10/Materials | Discovered new exit (range 11) 312 | -10/Materials | Build established: Mutant 450 | -10/Materials | Entered another Materials area 450 | -9/Materials | Evolved 2 slots: Propulsion x1, Weapon x1 604 | -9/Materials | Central database locked down 1129 | -9/Materials | Discovered new exit (range 13) 1155 | -9/Materials | Entered another Materials area 1155 | -8/Materials | Evolved 2 slots: Utility x2 1259 | -8/Materials | Discovered new exit (range 7) 1278 | -8/Materials | Entered Factory 1278 | -7/Factory | Evolved 2 slots: Propulsion x1, Utility x1 1325 | -7/Factory | Identified exit to DSF 1325 | -7/Factory | Entered DSF 1325 | -7/DSF | Met a pair of Sappers preparing to destroy DSF 1344 | -7/DSF | Additional patrols routed to DSF 1359 | -7/DSF | Core integrity fell below 50% 1362 | -7/DSF | Core destroyed Last Messages --------------- 01331_ H8-EMC: "So this what it feels like to be on the other side of our handiwork..." 01331_ Penetrated by Slug. 01331_ Rocket Launcher destroyed. 01332_ K3-BOM: "Don't stop, just run!" 01333_ Flight Unit destroyed. 01343_ Slug penetrates Wall. 01344_ DSF_010 integrity compromised, routing additional patrols. 01345_ Knocked back. 01350_ Hacking Suite destroyed. 01350_ Knocked back. 01351_ Flail destroyed. 01356_ Deuterium Engine destroyed. 01358_ Powered Hammer destroyed. 01358_ A-02 Transporter destroyed. 01359_ Slug penetrates Earth. 01360_ A-02 Transporter destroyed. 01360_ System Shield destroyed. 01360_ A-02 Transporter destroyed. 01361_ Slug penetrates Earth. Map ----- +----------------------------------------------------+ | ?????????????????????????????????????????????? | | ?????????????????????????????????????????????? | | ?????????????????????????????????????????????? | | ?????????????????????????????????????????????? | | ?????????????????????????????????????????????? | | ?????????????????????????????????????????????? | | ?????????????????????????????????????????????? | | ?????????????????????????????????????????????? | | ?????????????????????????????????????????????? | | ?????????????????????????????????????????????? | | ??????????????????????? ?????????????????????? | | ??????????????????????# ???????????????????? | | ??????????????????????] !!;????????????????? | | ??????????????????????] ; ??????????????? | | ??????????????????????] ????????????? | | ????????????###?######; ##########??? | | ????????????# #!!!;;; === **## #??? | | ????????????# #!!!;=% % == * "# #??? | | ????????????? //#??? | | ?????????????? / ##?? | | ??????????????? %! / #? | | ????????????????#! #? | | ????????????????#!!! H # | | ?????????????????#; # | | ?????????????????# # | | ???????????????### @ | | ???????????????# | | ??????????????## | | ??????????????# | | ?????????????# | | ????????????# % | | ????????????## | | ?????????????# "" | | ?????????????# % | | ?????????????# " | | ?????????????## ! % " | | ??????????????# % | | ??????????????## | | ???????????????# | | ???????????????### % | | ?????????????????## ##? | | ??????????????????# #?? | | ??????????????????### ###?? | | ????????????????????##### ## #### ###???? | | ????????????????????????##??##????######?????? | | | | | | | | | | | +----------------------------------------------------+ Best States ------------- Heat Dissipation 41 Energy Generation 14 Energy Capacity 280 Matter Stores 300 Matter Capacity 300 Sight Range 16 Terrain Scan Density 10 Evasion (%) 63 Targeting Accuracy 5 Offensive Hacking 20 Defensive Hacking 30 Item Schematics ----------------- None Robot Schematics ------------------ None Fabricated ------------ Nothing Alien Tech Used ----------------- None Achievements -------------- None Challenges ------------ None Game ------ Seed ArmoredDefenseCutter Manual? 0 Play Time 00:14:33 Cumulative 116.6 hours Start 2022.12.02 @ 21:44:36 End 2022.12.02 @ 21:58:43 Sessions 1 Manual Loads 0 Difficulty Rogue Special Mode None Game No. 210 Rogue 210 Adventurer 0 Explorer 0 Win Type - Total 2 Types 1/0/1/0/0/0/0/0/0 Lore% 63 Gallery% 70 Achievement% 52 Wizard Run 0 Options --------- ASCII 0 Keyboard 0 Movement Mouse Keybinds 0 Fullscreen 1 Font 18/SmallcapsGlow Map View 76x50 Tactical HUD 1 Map Filters NONE Filters NONE Steam 1 RUN: 760bc507-faf2-436b-aa34-f8ff7e42d13f